Cogmind - Beta 14 @@@ ROGUE MODE // 2024.11.14 @ 23:07:11 Player: OctagonalPrism Result: Destroyed by H-77 Assassin with Coil Gun Performance ------------- Evolutions (6) 3000 Regions Visited (22) 4400 Robots Destroyed (223) 1115 Value Destroyed (10805) 10805 Prototype IDs (40) 800 Alien Tech Used (0) 0 Bonus (6263) 6263 TOTAL SCORE: 26383 Bonus ------- High Alert Combat Kills 472 Follower Combat Kills 1623 Entered Garrisons 1200 Used RIF Installer 2500 Aligned with FarCom 300 A7 Reached Mainframe 300 Friendly Fire -132 Cogmind --------- Core Integrity 0/1150 Matter 159/300 Energy 99/100 System Corruption 13% Temperature Cool (0) Movement Core (50) Location -4/Garrison Parts ------- > --- POWER (1) -------- (None) > --- PROPULSION (3) --- (None) > --- UTILITY (13) ----- Advanced Targeting Computer Improved System Shield Relay Coupler [Grunt] (28) > --- WEAPON (2) ------- (None) > --- INVENTORY (5) ---- Relay Coupler [NC] (32) Advanced Datajack Improved Remote Datajack Scythe Peak State ------------ > --- POWER ------------ Neutrino Core > --- PROPULSION ------- Centrium Heavy Treads > --- UTILITY ---------- Medium Storage Unit 0b10 Alert Chip Advanced Targeting Computer Advanced Targeting Computer Core Analyzer Centrium Medium Armor Plating Centrium Medium Armor Plating Improved Hacking Suite Advanced Hacking Suite Improved System Shield Improved System Shield > --- WEAPON ----------- KE Penetrator Magnetic Acceleration Cannon > --- INVENTORY -------- Light Angular Momentum Engine Improved Medium Treads Improved Medium Treads Improved Medium Treads Improved Hacking Suite Improved System Shield Advanced Datajack Scythe [Rating: 95] Favorites ----------- Power Improved Ion Engine Engine Improved Ion Engine Power Core Neutrino Core Reactor Light Antimatter Reactor Propulsion Compact Wheel Treads Medium Treads Leg Carbon-fiber Leg Wheel Compact Wheel Hover Unit Hover Unit Utility Advanced Targeting Computer Device Improved Terrain Scanner Storage Medium Storage Unit Processor Advanced Targeting Computer Hackware Advanced Hacking Suite Protection Centrium Medium Armor Plating Weapon KE Penetrator Energy Gun Small Laser Energy Cannon Heavy Phase Cannon Ballistic Gun KE Penetrator Ballistic Cannon Gauss Cannon Launcher Rocket Launcher Special Weapon Improved Remote Datajack Slashing Weapon Scythe Special Melee Weapon Advanced Datajack Build | -11 -10 -10 -9 -9 -9 -8 -8 -8 -8 -8 -7 -7 -7 -7 -6 -6 -6 -6 -5 -5 -4 -4 ------- Run | Yrd Mat Min Mat Min Exi Min Mat Gar Mat Gar Fac Gar Fac Gar Fac Ext Cet Arc Fac Gar Fac Gar Slots Evolved 12 | . . . 2 . . . 2 . . . 2 . . . 2 . . . 2 . 2 . Power . | . . . . . . . . . . . . . . . . . . . . . . . Propulsion 1 | . . . . . . . . . . . . . . . . . . . . . 1 . Utility 11 | . . . 2 . . . 2 . . . 2 . . . 2 . . . 2 . 1 . Weapon . | . . . . . . . . . . . . . . . . . . . . . . . Parts Attached 211 | 7 6 2 9 2 1 8 6 9 26 7 4 12 4 19 8 18 5 8 3 26 5 16 Power 21 | 1 . . 2 . . 1 . 1 2 . . 2 . 3 . 2 2 1 . 2 1 1 Engine 10 | 1 . . 2 . . 1 . 1 2 . . . . . . . 2 . . 1 . . Core 7 | . . . . . . . . . . . . 1 . 1 . 1 . 1 . 1 1 1 Reactor 4 | . . . . . . . . . . . . 1 . 2 . 1 . . . . . . Propulsion 44 | 2 3 . 2 . . 1 . . 10 . 1 3 2 4 3 5 1 . . 1 2 4 Treads 21 | 1 2 . 1 . . . . . . . . 2 2 . 2 3 1 . . 1 2 4 Leg 13 | . . . . . . . . . 5 . 1 1 . 3 1 2 . . . . . . Wheel 7 | 1 1 . 1 . . 1 . . 3 . . . . . . . . . . . . . Hover 3 | . . . . . . . . . 2 . . . . 1 . . . . . . . . Flight . | . . . . . . . . . . . . . . . . . . . . . . . Utility 59 | 2 1 . 3 . 1 1 3 3 8 2 3 4 . 2 2 4 2 4 1 10 . 3 Device 11 | 1 . . 2 . . 1 . 1 1 1 . 1 . . . . . 1 . 1 . 1 Storage 6 | 1 1 . . . 1 . 1 . 1 . . . . . 1 . . . . . . . Processor 9 | . . . 1 . . . 1 1 2 . 2 1 . 1 . . . . . . . . Hackware 15 | . . . . . . . . 1 1 . 1 1 . . 1 1 . 2 1 5 . 1 Protection 18 | . . . . . . . 1 . 3 1 . 1 . 1 . 3 2 1 . 4 . 1 Artifact . | . . . . . . . . . . . . . . . . . . . . . . . Weapon 87 | 2 2 2 2 2 . 5 3 5 6 5 . 3 2 10 3 7 . 3 2 13 2 8 Energy Gun 4 | . 1 . . . . . . . . . . . . 2 . . . . . 1 . . Energy Cannon 1 | . . . . . . . . 1 . . . . . . . . . . . . . . Ballistic Gun 58 | 2 1 1 2 2 . 5 2 1 5 3 . 3 2 3 2 4 . 1 1 9 2 7 Ballistic Cannon 5 | . . . . . . . . 1 . . . . . 2 . 1 . . 1 . . . Launcher 2 | . . 1 . . . . . 1 . . . . . . . . . . . . . . Special Weapon 1 | . . . . . . . . . . . . . . . . . . . . . . 1 Impact Weapon . | . . . . . . . . . . . . . . . . . . . . . . . Slashing Weapon 10 | . . . . . . . 1 1 1 2 . . . 3 1 . . 1 . . . . Piercing Weapon . | . . . . . . . . . . . . . . . . . . . . . . . Special Melee Weapon 6 | . . . . . . . . . . . . . . . . 2 . 1 . 3 . . Unidentified Prototypes 3 | . . . . . . . . . . . . . 1 . . . 2 . . . . . Corrupted Parts 6 | . . . . . . . . . . . . . . . . 3 . . . . . 3 System Corruption 35 | . . . . . . . . . . . . . . . . 24 . . . . . 11 Parts Lost 85 | . 2 . 2 2 . 4 . 5 1 . 1 6 . 10 . 10 2 2 . 10 11 17 Power 11 | . . . 1 . . 1 . 1 . . . 1 . 1 . 1 1 . . 1 1 2 Propulsion 15 | . . . . . . 2 . . 1 . . 2 . 3 . 2 . . . . . 5 Utility 31 | . . . 1 1 . . . 2 . . 1 1 . 2 . 4 1 1 . 5 7 5 Weapon 28 | . 2 . . 1 . 1 . 2 . . . 2 . 4 . 3 . 1 . 4 3 5 Highest Loss Streak 12 | . 1 . 1 1 . 4 . 5 1 . 1 6 . 2 . 4 2 1 . 3 11 12 To Critical Strikes 1 | . . . . . . . . . . . . . . . . . . . . . . 1 Average Slot Usage (%) 89 | . 97 100 83 91 66 88 83 61 97 99 89 96 100 93 95 89 93 91 88 88 82 58 Engine 4 | . 14 14 11 11 11 10 9 8 9 9 7 2 . . . . 5 1 . . . . Core 1 | . . . . . . . . . . . . 1 7 2 . 2 . 4 5 3 4 3 Reactor 1 | . . . . . . . . . . . . 3 . 4 6 3 . . . . . . Treads 6 | . 14 14 11 11 11 4 . . . . . 3 15 6 5 10 7 6 5 5 10 11 Leg 3 | . . . . . . . . . 9 18 15 10 . 5 7 2 . . . . . . Wheel 3 | . 13 14 11 11 11 9 9 9 5 . . . . . . . . . . . . . Device 4 | . 14 14 14 18 11 20 13 . . . . 1 7 1 . . . 1 . 3 4 3 Storage 6 | . 14 14 11 11 11 11 9 9 9 9 7 7 7 3 3 6 6 6 5 5 4 . Processor 22 | . . . 2 11 11 11 16 13 21 27 29 35 30 36 33 27 26 26 23 18 9 5 Hackware 12 | . . . . . . . . 1 13 9 7 12 15 15 18 18 13 14 23 26 25 21 Protection 5 | . . . . . . . 8 3 7 8 5 . . 1 6 5 18 15 11 8 11 2 Ballistic Gun 11 | . 23 13 20 18 . 20 17 6 13 14 15 14 15 8 12 9 6 1 5 9 9 9 Ballistic Cannon 1 | . . . . . . . . 2 . . . . . 4 . 1 6 2 3 . . . Peak Build Rating 95 | 9 9 10 13 13 11 16 28 35 42 42 48 65 60 60 66 64 82 89 95 95 95 71 Average Rating 49 | 5 8 9 9 12 10 14 24 22 37 37 42 55 55 55 62 57 77 85 94 87 89 59 On Entrance 42 | . 9 9 10 13 12 10 16 24 29 37 40 47 52 60 58 64 64 82 89 95 89 60 Naked Turns . | . . . . . . . . . . . . . . . . . . . . . . . Heaviest Build 56 | 15 20 18 22 22 19 24 35 38 27 28 28 38 37 37 35 39 48 56 51 54 54 24 Greatest Support 110 | 16 20 16 20 20 16 16 16 16 32 30 33 47 55 55 56 60 80 80 80 80 110 107 Greatest Overweight (x) 8 | . 1 1 1 1 1 1 2 2 2 . . 1 . 8 1 . . . . . . 1 Average Overweight (x) . | . . 1 . 1 1 1 1 1 . . . . . . . . . . . . . . Largest Inventory Capacity 10 | 8 10 10 10 10 10 10 10 10 10 10 10 10 10 10 10 10 10 10 10 10 10 5 Average Capacity 9 | 6 9 10 10 10 10 10 10 10 10 10 10 10 10 7 7 10 10 10 10 10 9 5 Most Carried 10 | 3 4 5 7 5 9 8 9 10 10 10 10 10 10 10 8 8 10 10 9 10 10 5 Average Carried 7 | 2 3 4 4 4 7 4 5 8 9 9 9 8 9 7 6 6 9 9 8 9 8 4 Final Capacity 10 | 8 10 10 10 10 10 10 10 10 10 10 10 10 10 5 10 10 10 10 10 10 5 5 Final Carried 10 | 3 3 5 4 5 8 4 9 10 10 10 9 8 10 4 8 8 10 9 8 10 5 4 Class Distribution -------------------- 39% | Mutant 25% | Scavenger-Mutant 24% | Hacker-Mutant 8% | Skirmisher Dominant Class ---------------- Mutant | -10/Materials Mutant | -10/Mines Scavenger-Mutant | -9/Materials Mutant | -9/Mines Mutant | -9/Exiles Skirmisher | -8/Mines Skirmisher | -8/Materials Mutant | -8/Garrison Hacker-Mutant | -8/Materials Scavenger-Mutant | -8/Garrison Scavenger-Skirmisher | -7/Factory Skirmisher | -7/Garrison Mutant | -7/Factory Mutant | -7/Garrison Scavenger-Mutant | -6/Factory Hacker-Mutant | -6/Extension Scavenger-Mutant | -6/Cetus Scavenger-Mutant | -6/Archives Hacker-Mutant | -5/Factory Hacker-Mutant | -5/Garrison Hacker-Mutant | -4/Factory Hacker-Mutant | -4/Garrison Resources | -11 -10 -10 -9 -9 -9 -8 -8 -8 -8 -8 -7 -7 -7 -7 -6 -6 -6 -6 -5 -5 -4 -4 ----------- Run | Yrd Mat Min Mat Min Exi Min Mat Gar Mat Gar Fac Gar Fac Gar Fac Ext Cet Arc Fac Gar Fac Gar Matter Collected 7237 | 182 465 52 235 69 . 86 164 161 967 248 83 474 170 989 435 531 164 423 20 813 24 482 Remotely . | . . . . . . . . . . . . . . . . . . . . . . . Salvage Created 8323 | 33 495 67 383 201 . 50 177 226 929 153 156 904 187 1208 606 493 33 512 29 1360 65 56 Parts 515 | 2 42 10 26 18 . 12 17 15 70 18 9 49 16 64 29 24 1 27 1 56 6 3 Haulers Intercepted 6 | . 2 . 1 . . . . . 2 . . . . . 1 . . . . . . . Recyclers Shooed 7 | . . . 1 . . 1 . . 2 . . . . . 2 1 . . . . . . Parts Field Recycled . | . . . . . . . . . . . . . . . . . . . . . . . Retrieved Matter . | . . . . . . . . . . . . . . . . . . . . . . . Parts Self-Destructed . | . . . . . . . . . . . . . . . . . . . . . . . Prevented . | . . . . . . . . . . . . . . . . . . . . . . . Kills | -11 -10 -10 -9 -9 -9 -8 -8 -8 -8 -8 -7 -7 -7 -7 -6 -6 -6 -6 -5 -5 -4 -4 ------- Run | Yrd Mat Min Mat Min Exi Min Mat Gar Mat Gar Fac Gar Fac Gar Fac Ext Cet Arc Fac Gar Fac Gar Combat Hostiles Destroyed 181 | . 13 5 9 10 . 3 6 10 17 10 5 18 3 33 4 7 1 4 . 21 1 1 Melee 4 | . . . . . . . . 1 3 . . . . . . . . . . . . . Guns 149 | . 13 . 9 10 . 3 6 . 14 10 5 18 3 23 4 7 . 1 . 21 1 1 Cannons 16 | . . . . . . . . 2 . . . . . 10 . . 1 3 . . . . AOE 12 | . . 5 . . . . . 7 . . . . . . . . . . . . . . Classes Destroyed 17 | 1 5 1 1 . . . 1 . 1 . 1 1 1 1 . 2 . . . 1 . . Worker 6 | . . 1 . . . . . . 1 . . . . . 3 1 . . . . . . Builder 2 | . . . . . . . . . . . . . 1 . . . . . . . 1 . Tunneler 3 | 2 . . . . . 1 . . . . . . . . . . . . . . . . Hauler 6 | . 2 . 1 . . . . . 2 . . . . . 1 . . . . . . . Recycler 3 | . . . . . . . . . 2 . . . . . 1 . . . . . . . Operator 14 | . 1 . 1 . . . . . 1 . . . 1 . 1 . . 9 . . . . Watcher 8 | . 2 . . . . . . . 1 . . 1 . . 1 2 . . 1 . . . Swarmer 62 | . 6 3 3 7 . 3 4 4 7 10 4 4 . 7 . . . . . . . . Saboteur 1 | . . . . . . . . . . . . . . . . 1 . . . . . . Grunt 68 | . 7 2 4 3 . . . 6 6 . . 8 2 16 2 3 . . . 9 . . Brawler 2 | . . . . . . . . . . . . . . 2 . . . . . . . . Duelist 2 | . . . . . . . . . . . . 1 1 . . . . . . . . . Sentry 23 | . . . 2 . . . 1 . 2 . . 4 . 3 . 2 . 4 . 5 . . Specialist 2 | . . . . . . . . . . . . . . . . . . . . 2 . . Hunter 10 | . . . . . . . 1 . 2 . . 1 . 1 2 . . . . 2 1 . Programmer 9 | . . . . . . . . . . . 1 . . 4 . . . . . 3 . 1 Behemoth 1 | . . . . . . . . . . . . . . . . 1 . . . . . . Cetus Guard 1 | . . . . . . . . . . . . . . . . . 1 . . . . . Best Kill Streak 9 | 1 3 6 3 9 . 3 5 7 5 4 4 6 3 5 2 5 1 3 1 5 2 1 Combat Bots Only 9 | . 3 5 3 9 . 3 5 7 3 4 4 5 3 5 2 3 1 2 . 5 1 1 Max Kills in Single Turn 3 | 1 1 2 1 1 . 1 1 3 1 2 2 2 1 2 1 1 1 1 1 1 1 1 Gunslinging 1 | . . . . . . . . . . . 1 1 . 1 . . . . . . . . Exploded 3 | . . 2 . . . . . 3 . . . . . . . . . . . . . . Melee 1 | . . . . . . . . 1 1 . . . . . . . . . . . . . Uniques/NPCs Destroyed . | . . . . . . . . . . . . . . . . . . . . . . . Combat | -11 -10 -10 -9 -9 -9 -8 -8 -8 -8 -8 -7 -7 -7 -7 -6 -6 -6 -6 -5 -5 -4 -4 -------- Run | Yrd Mat Min Mat Min Exi Min Mat Gar Mat Gar Fac Gar Fac Gar Fac Ext Cet Arc Fac Gar Fac Gar Hostile Shots Fired 1676 | . 79 11 51 52 . 16 29 57 77 27 17 192 24 213 20 184 25 26 . 182 198 196 Missed 477 | . 18 3 16 10 . 2 8 14 21 10 4 67 7 55 10 76 7 5 . 43 49 52 Damage Taken 17226 | . 612 115 420 398 . 117 241 653 692 131 278 1220 263 2105 165 1291 371 497 80 2549 2301 2727 Core 3043 | . 121 17 105 89 . 8 29 90 85 37 76 159 63 388 . 320 33 99 . 166 225 933 Absorbed by Shields 572 | . . . . . . . . . . . . . 95 118 . 270 89 . . . . . Reduced by Siege Mode 162 | . . . . . . . . . . . . . . . . . . 11 . 40 88 23 Redirected to Shielding 48 | . . . . . . . . . . . . . . . . 24 16 8 . . . . Regen/Repaired (Parts) 154 | . 27 . . . . . . . 127 . . . . . . . . . . . . . Core Remaining (%) 54 | 100 . 44 . . . 49 . . . 56 . . . 2 . . . 46 . 83 . . Volleys Fired 770 | 7 76 5 48 39 . 17 25 30 54 17 7 53 20 102 33 55 13 22 2 88 20 37 Largest 2 | 2 2 1 2 2 . 2 2 2 2 2 2 2 2 2 2 2 2 2 2 2 2 2 Hottest 113 | 40 40 33 60 40 . 40 53 85 50 58 58 63 48 113 113 83 83 83 86 86 70 66 Shots Fired 1338 | 14 119 5 93 59 . 26 50 33 94 33 13 95 40 185 66 85 24 41 4 154 39 66 Gun 1202 | 14 119 . 93 59 . 26 50 7 94 33 13 95 40 126 66 84 12 22 2 144 39 64 Cannon 119 | . . . . . . . . 16 . . . . . 59 . 1 12 19 2 10 . . Launcher 15 | . . 5 . . . . . 10 . . . . . . . . . . . . . . Special 2 | . . . . . . . . . . . . . . . . . . . . . . 2 Kinetic 1296 | 14 110 . 87 59 . 26 50 23 94 33 13 95 40 183 64 85 24 41 4 148 39 64 Thermal 25 | . 9 . 6 . . . . . . . . . . 2 2 . . . . 6 . . Explosive 15 | . . 5 . . . . . 10 . . . . . . . . . . . . . . Electromagnetic . | . . . . . . . . . . . . . . . . . . . . . . . Robot Hit Streak 42 | 5 12 2 12 9 . 11 20 5 16 10 5 13 23 42 18 28 14 19 23 27 21 11 Robot Miss Streak 8 | 2 5 1 2 3 . 1 5 3 5 2 1 8 2 4 2 2 2 2 . 3 2 4 Penetration Max 2 | . . . . . . . . . . . . 2 . 1 1 1 . . . 1 1 . Secondary Targets 22 | . 2 . . 3 . . 1 . . 2 2 3 1 6 . 1 . . . 1 . . Max Gunslinging Chain 1 | . 1 . . 1 . . 1 . . 1 1 1 1 1 . 1 . . . 1 . . Shots Hit Robots 994 | 9 74 2 62 42 . 21 30 19 72 18 10 66 33 139 50 82 16 54 5 118 31 41 Core Hits 494 | 2 27 6 30 20 . 8 12 14 35 10 8 37 12 125 25 27 6 22 2 45 10 11 Critical Kills 10 | . 1 . . . . . . . . . 1 1 . 2 1 . . . . 4 . . Critical Parts Destroyed 8 | . 2 . . . . . . 2 . . . . . . . 1 . 1 . . 1 1 Critical Strikes 29 | . 3 . . . . . . 2 1 . 1 1 . 7 1 1 . 3 . 6 1 2 Burn 1 | . . . . . . . . . . . . . . . . . . . . 1 . . Destroy 19 | . 3 . . . . . . 2 . . 1 1 . 2 1 1 . 1 . 4 1 2 Blast 7 | . . . . . . . . . . . . . . 5 . . . 1 . 1 . . Sever 2 | . . . . . . . . . 1 . . . . . . . . 1 . . . . Melee Attacks 80 | . . . . . . . 1 7 15 12 . . . 7 1 10 . 19 1 7 . . Impact . | . . . . . . . . . . . . . . . . . . . . . . . Slashing 62 | . . . . . . . 1 7 15 12 . . . 7 1 . . 18 1 . . . Piercing . | . . . . . . . . . . . . . . . . . . . . . . . Sneak Attacks 33 | . . . . . . . . . 2 . . . . . . 10 . 14 . 7 . . Combat Hostiles 1 | . . . . . . . . . . . . . . . . . . . . 1 . . Follow-up Attacks . | . . . . . . . . . . . . . . . . . . . . . . . Damage Inflicted 21441 | 108 903 502 517 344 . 167 475 895 1363 326 211 1656 552 3660 1241 1427 436 2112 146 2852 646 902 Guns 15989 | 108 903 . 517 344 . 167 475 57 1033 326 211 1656 552 2045 1241 1396 230 404 52 2728 642 902 Cannons 2542 | . . . . . . . . 280 . . . . . 1301 . 31 206 537 63 124 . . Explosions 1026 | . . 502 . . . . . 524 . . . . . . . . . . . . . . Melee 1880 | . . . . . . . . 34 330 . . . . 314 . . . 1171 31 . . . Ramming 4 | . . . . . . . . . . . . . . . . . . . . . 4 . Kinetic 18250 | 108 848 . 473 344 . 167 475 337 1033 326 211 1656 552 3324 1200 1427 436 941 115 2733 642 902 Thermal 281 | . 55 . 44 . . . . . . . . . . 22 41 . . . . 119 . . Explosive 1026 | . . 502 . . . . . 524 . . . . . . . . . . . . . . Electromagnetic . | . . . . . . . . . . . . . . . . . . . . . . . Impact . | . . . . . . . . . . . . . . . . . . . . . . . Slashing 1880 | . . . . . . . . 34 330 . . . . 314 . . . 1171 31 . . . Piercing . | . . . . . . . . . . . . . . . . . . . . . . . Highest Corruption 27 | . . . 3 3 3 3 . . . . . . . 2 3 27 27 27 . 4 . 13 Average Corruption 8 | . . . 2 3 3 3 . . . . . . . 1 2 8 27 24 . 3 . 3 Corruption Purged 6 | . . . . . . . . . . . . . . . . . . 6 . . . . Corruption Blocked . | . . . . . . . . . . . . . . . . . . . . . . . Effects 142 | . . . 5 3 6 8 . . . . . . . 26 1 29 25 29 . 2 . 8 Message Errors 35 | . . . . 1 . 3 . . . . . . . 10 . 3 5 11 . . . 2 Matter Fused 36 | . . . . . 1 . . . . . . . . 5 . 7 8 10 . 1 . 4 Heat Flow Errors 14 | . . . . 1 1 . . . . . . . . . 1 3 2 5 . . . 1 Energy Discharges 17 | . . . . . 2 2 . . . . . . . 5 . 6 . 2 . . . . Parts Rejected 3 | . . . . . . . . . . . . . . . . 2 1 . . . . . Parts Fused 2 | . . . . . . . . . . . . . . . . . 1 1 . . . . Data Loss (minor) 13 | . . . 2 1 2 . . . . . . . . 4 . 3 . . . . . 1 Data Loss (major) 6 | . . . . . . 2 . . . . . . . 1 . 1 2 . . . . . Misfires 6 | . . . . . . 1 . . . . . . . 1 . 1 2 . . 1 . . Alerts 3 | . . . 1 . . . . . . . . . . . . 2 . . . . . . Misdirections 1 | . . . . . . . . . . . . . . . . 1 . . . . . . Weapon Failures 6 | . . . 2 . . . . . . . . . . . . . 4 . . . . . Overload Shots . | . . . . . . . . . . . . . . . . . . . . . . . Overflow Damage 572 | . . 50 . . . . . 7 84 . . . . 95 . . . 326 10 . . . Projectiles 61 | . . . . . . . . . . . . . . 51 . . . . 10 . . . Explosions 57 | . . 50 . . . . . 7 . . . . . . . . . . . . . . Melee 454 | . . . . . . . . . 84 . . . . 44 . . . 326 . . . . Knockbacks 16 | . . . . . . . . 6 . . . . . 9 . . . . . 1 . . Impact . | . . . . . . . . . . . . . . . . . . . . . . . Kinetic 14 | . . . . . . . . 5 . . . . . 8 . . . . . 1 . . Secondary 2 | . . . . . . . . 1 . . . . . 1 . . . . . . . . Self-Inflicted Damage 74 | . . 46 . . . . . 28 . . . . . . . . . . . . . . Shots 3 | . . 2 . . . . . 1 . . . . . . . . . . . . . . Rammed 1 | . . . . . . . . . . . . . . . . . . . . . 1 . Targets Rammed 1 | . . . . . . . . . . . . . . . . . . . . . 1 . Kicked . | . . . . . . . . . . . . . . . . . . . . . . . Crushed . | . . . . . . . . . . . . . . . . . . . . . . . Highest Temperature 273 | . . 5 28 262 150 . 34 247 20 28 16 40 10 144 135 272 270 273 . 90 . 113 Average Temperature 43 | . . 3 9 82 84 . 11 116 5 9 6 8 4 30 37 67 53 79 . 34 . 52 Received Heat Transfer 3572 | . 180 9 156 138 . . 18 360 135 . . 357 86 664 60 399 36 99 . 740 9 126 Effects 1 | . . . . . . . . 1 . . . . . . . . . . . . . . Interference 1 | . . . . . . . . 1 . . . . . . . . . . . . . . Siege Activations 7 | . . . . . . . . . . . . . . . . . . 3 . 2 1 1 Total Turns 163 | . . . . . . . . . . . . . . . . . . 49 . 81 30 3 Longest Duration 44 | . . . . . . . . . . . . . . . . . . 32 . 44 30 3 Robots Corrupted . | . . . . . . . . . . . . . . . . . . . . . . . Combat Hostiles . | . . . . . . . . . . . . . . . . . . . . . . . Parts Fried . | . . . . . . . . . . . . . . . . . . . . . . . Impact Corruptions . | . . . . . . . . . . . . . . . . . . . . . . . Robots Melted . | . . . . . . . . . . . . . . . . . . . . . . . Combat Hostiles . | . . . . . . . . . . . . . . . . . . . . . . . Parts Melted 1 | . . . . . . . . . . . . . . . . . . . . 1 . . Heat Transferred 634 | . 125 . 100 . . . . . . . . . . 50 100 . . . . 259 . . Parts Sabotaged . | . . . . . . . . . . . . . . . . . . . . . . . Parts Stolen . | . . . . . . . . . . . . . . . . . . . . . . . Parts Stripped . | . . . . . . . . . . . . . . . . . . . . . . . Power Chain Reactions . | . . . . . . . . . . . . . . . . . . . . . . . Alert | -11 -10 -10 -9 -9 -9 -8 -8 -8 -8 -8 -7 -7 -7 -7 -6 -6 -6 -6 -5 -5 -4 -4 ------- Run | Yrd Mat Min Mat Min Exi Min Mat Gar Mat Gar Fac Gar Fac Gar Fac Ext Cet Arc Fac Gar Fac Gar Peak Influence 1042 | 10 254 255 296 272 . 50 162 410 272 433 301 451 279 1042 739 509 209 141 200 535 315 324 Initial 546 | . 6 76 99 62 . . 15 105 199 145 226 70 236 86 546 318 141 83 5 140 280 141 Average 290 | 3 126 194 199 194 . 27 60 304 123 264 266 259 206 529 608 368 191 70 139 372 278 214 Maximum Alert Level 3 | . 1 1 1 1 . . . 2 1 2 1 2 1 3 3 2 1 . 1 2 1 1 Low Security (%) 37 | 100 84 34 50 42 . 100 100 19 72 26 . 32 39 13 . . 85 100 33 9 . 41 Level 1 35 | . 15 65 49 57 . . . 57 27 67 99 39 60 26 . 63 14 . 66 38 100 58 Level 2 22 | . . . . . . . . 23 . 5 . 28 . 34 91 36 . . . 52 . . Level 3 4 | . . . . . . . . . . . . . . 25 8 . . . . . . . Level 4 . | . . . . . . . . . . . . . . . . . . . . . . . Level 5 . | . . . . . . . . . . . . . . . . . . . . . . . High Security . | . . . . . . . . . . . . . . . . . . . . . . . Max Security . | . . . . . . . . . . . . . . . . . . . . . . . Squads Dispatched 24 | . 4 . 2 . . . 1 . 3 . 1 . . . 6 3 . . . . 4 . Investigation 10 | . 3 . 1 . . . 1 . 2 . . . . . 2 1 . . . . . . Extermination 2 | . . . . . . . . . . . 1 . . . 1 . . . . . . . Reinforcement 8 | . 1 . 1 . . . . . 1 . . . . . 2 1 . . . . 2 . Assault 2 | . . . . . . . . . . . . . . . 1 1 . . . . . . Garrison 2 | . . . . . . . . . . . . . . . . . . . . . 2 . Intercept . | . . . . . . . . . . . . . . . . . . . . . . . Searches Triggered . | . . . . . . . . . . . . . . . . . . . . . . . Construction Impeded 2 | . . . . . . . . . . . . . . . . 1 . . . . 1 . Haulers Reinforced 1 | . . . . . . . . . . . . . . . 1 . . . . . . . Active Scanning Responses . | . . . . . . . . . . . . . . . . . . . . . . . Cargo Convoy Interrupts . | . . . . . . . . . . . . . . . . . . . . . . . Stealth | -11 -10 -10 -9 -9 -9 -8 -8 -8 -8 -8 -7 -7 -7 -7 -6 -6 -6 -6 -5 -5 -4 -4 --------- Run | Yrd Mat Min Mat Min Exi Min Mat Gar Mat Gar Fac Gar Fac Gar Fac Ext Cet Arc Fac Gar Fac Gar Distress Signals 7 | . . . . . . . 3 . 2 . . . . . . 1 1 . . . . . Communications Jammed . | . . . . . . . . . . . . . . . . . . . . . . . Distress Signals . | . . . . . . . . . . . . . . . . . . . . . . . Times Spotted 308 | . 23 7 21 10 . 3 9 10 32 12 5 19 5 44 17 20 4 15 3 26 11 12 Peak Tracking Total 6 | . 4 5 4 6 . 3 5 4 4 4 4 4 3 6 3 6 5 2 2 6 6 4 Tactical Retreats 25 | . 1 1 . . . . 1 . 5 3 . 1 . 8 . . . . . 4 . 1 Traps | -11 -10 -10 -9 -9 -9 -8 -8 -8 -8 -8 -7 -7 -7 -7 -6 -6 -6 -6 -5 -5 -4 -4 ------- Run | Yrd Mat Min Mat Min Exi Min Mat Gar Mat Gar Fac Gar Fac Gar Fac Ext Cet Arc Fac Gar Fac Gar Traps Triggered 19 | . 2 . 3 . . . . 3 1 1 . 2 . 4 2 . . . . 1 . . Indirectly . | . . . . . . . . . . . . . . . . . . . . . . . Trap Hack Attempts . | . . . . . . . . . . . . . . . . . . . . . . . Triggered . | . . . . . . . . . . . . . . . . . . . . . . . Disarmed 1 | . . . . . . . . . 1 . . . . . . . . . . . . . Reprogrammed . | . . . . . . . . . . . . . . . . . . . . . . . Reused . | . . . . . . . . . . . . . . . . . . . . . . . Traps Extracted . | . . . . . . . . . . . . . . . . . . . . . . . Installed . | . . . . . . . . . . . . . . . . . . . . . . . Triggered . | . . . . . . . . . . . . . . . . . . . . . . . Machines | -11 -10 -10 -9 -9 -9 -8 -8 -8 -8 -8 -7 -7 -7 -7 -6 -6 -6 -6 -5 -5 -4 -4 ---------- Run | Yrd Mat Min Mat Min Exi Min Mat Gar Mat Gar Fac Gar Fac Gar Fac Ext Cet Arc Fac Gar Fac Gar Machines Disabled 45 | . . . . . . . 2 4 1 1 . 3 . 7 8 3 1 1 7 4 1 2 Max in Single Turn 1 | . . . . . . . 1 1 1 1 . 1 . 1 1 1 1 1 . 1 . 1 Garrison Relay 14 | . . . . . . . . 2 . 1 . 2 . 5 . . . . . 3 . 1 Phase Generator 1 | . . . . . . . . . . . . . . . . . . . . 1 . . Energy Cycler 1 | . . . . . . . . . . . . . . . . 1 . . . . . . Machines Repaired . | . . . . . . . . . . . . . . . . . . . . . . . Machines Dismantled . | . . . . . . . . . . . . . . . . . . . . . . . Machines Sabotaged . | . . . . . . . . . . . . . . . . . . . . . . . Overloaded Fab Kills . | . . . . . . . . . . . . . . . . . . . . . . . Hacking | -11 -10 -10 -9 -9 -9 -8 -8 -8 -8 -8 -7 -7 -7 -7 -6 -6 -6 -6 -5 -5 -4 -4 --------- Run | Yrd Mat Min Mat Min Exi Min Mat Gar Mat Gar Fac Gar Fac Gar Fac Ext Cet Arc Fac Gar Fac Gar Machines Accessed 49 | . 6 . 1 . 2 . 4 1 10 2 3 2 3 2 5 3 2 . 1 1 1 . Terminals 36 | . 5 . 1 . . . 3 1 7 2 . 2 2 2 5 3 2 . . 1 . . Fabricators 1 | . . . . . . . . . . . 1 . . . . . . . . . . . Repair Stations 2 | . 1 . . . . . . . 1 . . . . . . . . . . . . . Recycling Units . | . . . . . . . . . . . . . . . . . . . . . . . Scanalyzers 2 | . . . . . . . . . 1 . 1 . . . . . . . . . . . Garrison Access 6 | . . . . . . . 1 . 1 . 1 . 1 . . . . . 1 . 1 . Total Hacks 107 | . 18 . 3 . 2 . 13 1 30 3 6 3 3 4 8 6 3 . 1 2 1 . Successful 62 | . 9 . 2 . 2 . 7 1 22 2 4 2 2 1 2 2 2 . 1 . 1 . Failed 45 | . 9 . 1 . . . 6 . 8 1 2 1 1 3 6 4 1 . . 2 . . Catastrophic 2 | . 1 . . . . . . . . . . . 1 . . . . . . . . . Database Lockouts . | . . . . . . . . . . . . . . . . . . . . . . . Manual 30 | . 11 . 1 . 1 . 6 . 7 . . . . . 4 . . . . . . . Terminals 85 | . 15 . 3 . . . 12 1 23 3 . 3 2 4 8 6 3 . . 2 . . Fabricators 3 | . . . . . . . . . . . 3 . . . . . . . . . . . Repair Stations 8 | . 3 . . . . . . . 5 . . . . . . . . . . . . . Recycling Units . | . . . . . . . . . . . . . . . . . . . . . . . Scanalyzers 3 | . . . . . . . . . 1 . 2 . . . . . . . . . . . Garrison Access 6 | . . . . . . . 1 . 1 . 1 . 1 . . . . . 1 . 1 . Terminal Hacks 34 | . 3 . 1 . 2 . 3 1 12 2 . 2 1 1 2 2 2 . . . . . Record 2 | . . . . . 1 . . . . . . . . . . . 1 . . . . . Robot Analysis 1 | . . . . . . . . . 1 . . . . . . . . . . . . . Prototype ID Bank 6 | . 2 . . . . . 2 . 2 . . . . . . . . . . . . . Open Door 4 | . . . . . . . . . . . . . . . 1 2 1 . . . . . Emergency Access Points 3 | . 1 . . . . . . . . 1 . . . 1 . . . . . . . . Terminal Index 2 | . . . . . . . 1 . 1 . . . . . . . . . . . . . Unreport Threat 2 | . . . . . . . . . 2 . . . . . . . . . . . . . Locate Traps 3 | . . . 1 . . . . . 2 . . . . . . . . . . . . . Disarm Traps 2 | . . . . . . . . . 2 . . . . . . . . . . . . . Zone Layout 4 | . . . . . . . . . 2 . . . 1 . 1 . . . . . . . Garrison Registry 3 | . . . . . . . . 1 . 1 . 1 . . . . . . . . . . Security Stations 1 | . . . . . . . . . . . . 1 . . . . . . . . . . Derelict Proto ID Bank 1 | . . . . . 1 . . . . . . . . . . . . . . . . . Fabricator Hacks 1 | . . . . . . . . . . . 1 . . . . . . . . . . . Build 1 | . . . . . . . . . . . 1 . . . . . . . . . . . Repair Station Hacks 7 | . 2 . . . . . . . 5 . . . . . . . . . . . . . Scan Component 3 | . 1 . . . . . . . 2 . . . . . . . . . . . . . Repair 3 | . 1 . . . . . . . 2 . . . . . . . . . . . . . Refit 1 | . . . . . . . . . 1 . . . . . . . . . . . . . Recycling Unit Hacks . | . . . . . . . . . . . . . . . . . . . . . . . Scanalyzer 2 | . . . . . . . . . . . 2 . . . . . . . . . . . Insert Component 1 | . . . . . . . . . . . 1 . . . . . . . . . . . Analyze 1 | . . . . . . . . . . . 1 . . . . . . . . . . . Garrison Access Hacks 6 | . . . . . . . 1 . 1 . 1 . 1 . . . . . 1 . 1 . Unlock Access 6 | . . . . . . . 1 . 1 . 1 . 1 . . . . . 1 . 1 . Unauthorized Hacks 12 | . 4 . 1 . . . 3 . 4 . . . . . . . . . . . . . Terminals 12 | . 4 . 1 . . . 3 . 4 . . . . . . . . . . . . . Botnet 7 | . 3 . . . . . 2 . 2 . . . . . . . . . . . . . Disrupt 1 | . . . . . . . . . 1 . . . . . . . . . . . . . Operators 4 | . 1 . 1 . . . 1 . 1 . . . . . . . . . . . . . Fabricators . | . . . . . . . . . . . . . . . . . . . . . . . Repair Stations . | . . . . . . . . . . . . . . . . . . . . . . . Recycling Units . | . . . . . . . . . . . . . . . . . . . . . . . Scanalyzers . | . . . . . . . . . . . . . . . . . . . . . . . Garrison Access . | . . . . . . . . . . . . . . . . . . . . . . . Data Cores Recovered 1 | . . . . . . . . . . . . . 1 . . . . . . . . . Used 1 | . . . . . . . . . . . . . 1 . . . . . . . . . Hacking Detections 37 | . 4 . 1 . . . 3 1 9 1 3 2 3 2 4 1 1 . . 1 1 . Full Trace Events 7 | . 2 . . . . . 1 . 1 . . . . . 2 1 . . . . . . Feedback Events . | . . . . . . . . . . . . . . . . . . . . . . . Feedback Blocked . | . . . . . . . . . . . . . . . . . . . . . . . Robot Schematics Acquired . | . . . . . . . . . . . . . . . . . . . . . . . Robots Built 2 | . . . . . . . . . . . 2 . . . . . . . . . . . Authchips 1 | . . . . . . . . . . . 1 . . . . . . . . . . . Time 67 | . . . . . . . . . . . 67 . . . . . . . . . . . Total Robot Build Rating 8 | . . . . . . . . . . . 8 . . . . . . . . . . . Part Schematics Acquired 1 | . . . . . . . . . . . 1 . . . . . . . . . . . Parts Built . | . . . . . . . . . . . . . . . . . . . . . . . Authchips . | . . . . . . . . . . . . . . . . . . . . . . . Time . | . . . . . . . . . . . . . . . . . . . . . . . Total Part Build Rating . | . . . . . . . . . . . . . . . . . . . . . . . Parts Repaired 3 | . 1 . . . . . . . 2 . . . . . . . . . . . . . Time 102 | . 26 . . . . . . . 76 . . . . . . . . . . . . . Parts Recycled . | . . . . . . . . . . . . . . . . . . . . . . . Recycled Matter . | . . . . . . . . . . . . . . . . . . . . . . . Retrieved Matter . | . . . . . . . . . . . . . . . . . . . . . . . Retrieved Components . | . . . . . . . . . . . . . . . . . . . . . . . Parts Scanalyzed 1 | . . . . . . . . . . . 1 . . . . . . . . . . . Part Schematics Acquired 1 | . . . . . . . . . . . 1 . . . . . . . . . . . Parts Damaged . | . . . . . . . . . . . . . . . . . . . . . . . Bothacking | -11 -10 -10 -9 -9 -9 -8 -8 -8 -8 -8 -7 -7 -7 -7 -6 -6 -6 -6 -5 -5 -4 -4 ------------ Run | Yrd Mat Min Mat Min Exi Min Mat Gar Mat Gar Fac Gar Fac Gar Fac Ext Cet Arc Fac Gar Fac Gar Used RIF Installer 5 | . . . . . . . . 1 . 1 . 1 . 1 . . . . . 1 . . Code Merge 1 | . . . . . . . . . . . . . . . . . . . . 1 . . Threat Obfuscator 1 | . . . . . . . . . . . . 1 . . . . . . . . . . Robot Detection 1 | . . . . . . . . . . 1 . . . . . . . . . . . . Watcher Feeds 1 | . . . . . . . . . . . . . . 1 . . . . . . . . Robots Hacked 8 | . . . . . . . . . . . . . . . . 4 . 1 . 1 . 2 Non-combat 4 | . . . . . . . . . . . . . . . . 3 . 1 . . . . Combat 4 | . . . . . . . . . . . . . . . . 1 . . . 1 . 2 Robot Hacks Applied 8 | . . . . . . . . . . . . . . . . 4 . 1 . 1 . 2 parse_system 1 | . . . . . . . . . . . . . . . . 1 . . . . . . no_distress 1 | . . . . . . . . . . . . . . . . . . 1 . . . . ignore_repairs 2 | . . . . . . . . . . . . . . . . 2 . . . . . . ignore_parts 1 | . . . . . . . . . . . . . . . . 1 . . . . . . formatsys_high 3 | . . . . . . . . . . . . . . . . . . . . 1 . 2 Relay Couplers Released 67 | . . . . . . . . 10 . 3 . 10 . 25 . . . . . 14 . 5 Machine Destruction 63 | . . . . . . . . 10 . 3 . 10 . 21 . . . . . 14 . 5 Programmers 4 | . . . . . . . . . . . . . . 4 . . . . . . . . Attached 8 | . . . . . . . . . . . . 1 . . . 1 . . . 5 . 1 Merged Code Value 40 | . . . . . . . . . . . . . . . . . . . . 40 . . Fabnet Peak Effective % . | . . . . . . . . . . . . . . . . . . . . . . . Robots Rewired 9 | . . . . . . . . . . . . . . . . 3 . . 1 5 . . Allies Hacked . | . . . . . . . . . . . . . . . . . . . . . . . Hacks Repelled . | . . . . . . . . . . . . . . . . . . . . . . . Allies | -11 -10 -10 -9 -9 -9 -8 -8 -8 -8 -8 -7 -7 -7 -7 -6 -6 -6 -6 -5 -5 -4 -4 -------- Run | Yrd Mat Min Mat Min Exi Min Mat Gar Mat Gar Fac Gar Fac Gar Fac Ext Cet Arc Fac Gar Fac Gar Total Allies 21 | . . . . . . . . . . . 2 . . 2 . 6 . . 1 6 . 4 Largest Group 8 | . . . . . . . . . . . 2 . . 2 2 8 1 1 1 6 3 2 Highest-Rated Group 495 | . . . . . . . . . . . 64 . . 190 190 495 159 159 49 196 160 190 Highest-Rated Ally 159 | . . . . . . . . . . . 32 . . 95 95 159 159 159 49 99 99 95 Total Orders . | . . . . . . . . . . . . . . . . . . . . . . . Ally Attacks 211 | . . . . . . . . . . . . . . . 35 90 16 . 5 26 20 19 Total Damage 8458 | . . . . . . . . . . . . . . . 1774 2992 802 . 968 434 503 985 Kills 43 | . . . . . . . . . . . . . . . 9 16 4 . 5 1 2 6 Allies Corrupted 1 | . . . . . . . . . . . . . . . . . . . . . . 1 Allies Melted . | . . . . . . . . . . . . . . . . . . . . . . . Intel | -11 -10 -10 -9 -9 -9 -8 -8 -8 -8 -8 -7 -7 -7 -7 -6 -6 -6 -6 -5 -5 -4 -4 ------- Run | Yrd Mat Min Mat Min Exi Min Mat Gar Mat Gar Fac Gar Fac Gar Fac Ext Cet Arc Fac Gar Fac Gar Robot Analysis Total 1 | . . . . . . . . . 1 . . . . . . . . . . . . . Derelict Logs Recovered 2 | . . 1 . 1 . . . . . . . . . . . . . . . . . . Drone Launches . | . . . . . . . . . . . . . . . . . . . . . . . Drone Recoveries . | . . . . . . . . . . . . . . . . . . . . . . . Exploration | -11 -10 -10 -9 -9 -9 -8 -8 -8 -8 -8 -7 -7 -7 -7 -6 -6 -6 -6 -5 -5 -4 -4 ------------- Run | Yrd Mat Min Mat Min Exi Min Mat Gar Mat Gar Fac Gar Fac Gar Fac Ext Cet Arc Fac Gar Fac Gar Turns Passed 16072 | 95 772 332 620 178 404 216 687 598 1589 539 401 919 662 2327 1075 908 389 710 182 1708 179 582 Spaces Moved 8841 | 60 389 276 283 62 347 118 347 393 1018 298 302 458 361 1173 694 477 215 328 106 806 61 269 Core 83 | 1 . . . . . . . . . . . . . 35 . . . . . . . 47 Treads 3743 | . 190 . 106 12 . . . . . . . 136 361 558 267 375 215 328 106 806 61 222 Legs 2505 | . . . . . . . . . 490 298 302 322 . 564 427 102 . . . . . . Wheels 2493 | 59 199 276 177 50 347 118 347 393 527 . . . . . . . . . . . . . Hover 17 | . . . . . . . . . 1 . . . . 16 . . . . . . . . Flight . | . . . . . . . . . . . . . . . . . . . . . . . Fastest Speed 50 | 50 100 115 115 115 115 115 115 100 100 120 120 115 165 115 115 115 160 160 160 160 160 50 Average Speed 138 | 99 133 115 147 139 115 115 122 117 113 120 120 131 165 159 132 150 160 160 160 160 164 144 Slowest Speed 450 | 100 160 115 240 240 115 115 130 130 190 120 120 180 165 450 240 160 160 160 160 160 165 170 Overloaded Moves . | . . . . . . . . . . . . . . . . . . . . . . . Propulsion Burnouts . | . . . . . . . . . . . . . . . . . . . . . . . Robots Hopped . | . . . . . . . . . . . . . . . . . . . . . . . Cave-ins Triggered . | . . . . . . . . . . . . . . . . . . . . . . . Exploration Rate (%) 44 | 4 83 68 34 21 70 43 29 61 55 40 11 40 16 90 18 63 78 97 4 76 2 17 Regions Visited 22 Branch Regions 7 Pre-discovered Areas 3 | . . 1 . 1 1 . . . . . . . . . . . . . . . . . Known Exits Taken 6 | . . . . . . . 1 . 1 . 1 . 1 . . . . . 1 . 1 . Unknown Exits Taken 11 | 1 1 1 1 1 1 1 . . . . . . . . 1 1 1 1 . . . . Scrap Searched 1 | . . . . . . 1 . . . . . . . . . . . . . . . . Spaces Dug 25 | . . . . . . . 1 16 6 . 1 . . . 1 . . . . . . . Terrain Destroyed 129 | . . 40 . . . . 1 39 6 . 3 . . 1 9 5 2 . . 11 10 2 Melee 8 | . . . . . . . 1 . 6 . . . . . 1 . . . . . . . Projectile 46 | . . . . . . . . 5 . . 3 . . 1 8 4 2 . . 11 10 2 AOE 74 | . . 40 . . . . . 34 . . . . . . . . . . . . . . Terrain Rammed . | . . . . . . . . . . . . . . . . . . . . . . . Walls Destroyed . | . . . . . . . . . . . . . . . . . . . . . . . Machines Disabled . | . . . . . . . . . . . . . . . . . . . . . . . Actions | -11 -10 -10 -9 -9 -9 -8 -8 -8 -8 -8 -7 -7 -7 -7 -6 -6 -6 -6 -5 -5 -4 -4 --------- Run | Yrd Mat Min Mat Min Exi Min Mat Gar Mat Gar Fac Gar Fac Gar Fac Ext Cet Arc Fac Gar Fac Gar Total 11330 | 77 519 284 408 106 354 177 565 485 1351 432 328 684 397 1424 780 598 235 449 112 1074 99 392 Wait 1226 | 1 45 . 57 3 . 33 177 17 217 90 15 144 5 94 38 31 . 57 . 126 12 64 Move 8814 | 59 388 275 282 61 346 117 346 391 1017 296 301 456 360 1171 693 476 214 327 105 804 60 269 Hop . | . . . . . . . . . . . . . . . . . . . . . . . Pick Up 55 | 3 1 2 3 . 2 1 4 7 2 1 . 4 3 1 2 4 . 6 . 6 . 3 Fast Attach 106 | 7 3 . 4 2 1 1 3 4 14 2 2 4 3 9 5 7 4 4 . 16 2 9 Attach 38 | . . . 1 . . 5 1 3 . . 1 5 . 4 . 7 1 2 1 1 2 4 Detach 30 | . . . 1 1 3 . 4 2 2 . . 2 . 2 3 2 3 2 . 3 . . Swap 67 | . 3 2 4 . . 2 2 2 12 5 1 3 1 6 3 4 . 2 2 9 1 3 Drop 77 | . 3 . 8 . 2 1 2 6 18 4 1 3 5 3 2 . . 8 . 9 1 1 Fire 770 | 7 76 5 48 39 . 17 25 30 54 17 7 53 20 102 33 55 13 22 2 88 20 37 Melee 80 | . . . . . . . 1 7 15 12 . . . 7 1 10 . 19 1 7 . . Ram . | . . . . . . . . . . . . . . . . . . . . . . . Kick . | . . . . . . . . . . . . . . . . . . . . . . . Crush 1 | . . . . . . . . . . . . . . . . . . . . . 1 . Escape Stasis 57 | . . . . . . . . 16 . 5 . 10 . 25 . 1 . . . . . . Rewire 9 | . . . . . . . . . . . . . . . . 1 . . 1 5 . 2 Trap . | . . . . . . . . . . . . . . . . . . . . . . . Miscellaneous . | . . . . . . . . . . . . . . . . . . . . . . . Route ------- -11/Scrapyard -10/Materials (discovered 4 exits: *Mat x3 / [*Min]) -10/Mines -9/Materials (discovered 2 exits: [*Min] / [*Sto]) -9/Mines -9/Exiles -8/Mines -8/Materials -8/Garrison (discovered 3 exits: *Mat x3) -8/Materials (discovered 3 exits: *Fac x2 / Gar) -8/Garrison (discovered 3 exits: *Fac x3) -7/Factory -7/Garrison (discovered 3 exits: *Fac x3) -7/Factory -7/Garrison (discovered 3 exits: *Fac x3) -6/Factory (discovered 2 exits: *Fac / *Ext) -6/Extension (discovered 3 exits: *Fac x2 / *Cet) -6/Cetus -6/Archives (discovered 3 exits: *Fac / [*Hub x2]) -5/Factory -5/Garrison (discovered 2 exits: *Fac x2) -4/Factory -4/Garrison History --------- Turn | Location | Event 17 | -11/Scrapyard | Discovered new exit (range 16) 96 | -11/Scrapyard | Entered Materials 300 | -10/Materials | Build established: Mutant 384 | -10/Materials | Discovered new exit (range 4) 504 | -10/Materials | Discovered new exit (range 4) 662 | -10/Materials | Repaired Com. Wheel 733 | -10/Materials | Discovered new exit (range 14) 833 | -10/Materials | Discovered new exit (range 10) 868 | -10/Materials | Entered Mines 875 | -10/Mines | Received a Rocket Launcher from a helpful Derelict 912 | -10/Mines | Learned location of Mines (-9) 977 | -10/Mines | Core integrity fell below 50% 1016 | -10/Mines | A weapon hastily lodged in a ceiling crevice suddenly fell to the ground 1195 | -10/Mines | Discovered new exit (range 3) 1200 | -10/Mines | Entered Materials 1200 | -9/Materials | Evolved 2 slots: Utility x2 1303 | -9/Materials | Discovered new exit (range 11) 1688 | -9/Materials | Build established: Scavenger-Mutant 1813 | -9/Materials | Discovered new exit (range 6) 1820 | -9/Materials | Entered Mines 1862 | -9/Mines | Met a Derelict bent on vengeance 1923 | -9/Mines | Destroyed 9 combat bots 1994 | -9/Mines | Deemed a non-threat by the Exiles lab entrance 1994 | -9/Mines | Discovered new exit (range 5) 1998 | -9/Mines | Entered Exiles 2027 | -9/Exiles | Met 8R-AWN 2047 | -9/Exiles | Met EX-HEX 2093 | -9/Exiles | Met EX-DEC 2097 | -9/Exiles | Learned location of Zion (-6) 2116 | -9/Exiles | Met EX-BIN 2132 | -9/Exiles | Aligned with FarCom system 2133 | -9/Exiles | Given EX-Vault access code 2163 | -9/Exiles | Opened EX-Vault 2167 | -9/Exiles | Found 0b10 Alert Chip 2172 | -9/Exiles | Build established: Mutant 2191 | -9/Exiles | Warned to stay clear of 0b10 Research branches 2390 | -9/Exiles | Discovered new exit (range 14) 2402 | -9/Exiles | Left Exiles lab with 0b10 Alert Chip 2402 | -9/Exiles | Entered Mines 2497 | -8/Mines | Core integrity fell below 50% 2521 | -8/Mines | Lost 4 parts (1p2n1w) 2609 | -8/Mines | Discovered new exit (range 7) 2618 | -8/Mines | Entered Materials 2618 | -8/Materials | Evolved 2 slots: Utility x2 2794 | -8/Materials | Build established: Skirmisher 3304 | -8/Materials | Identified exit to Garrison 3305 | -8/Materials | Entered Garrison 3396 | -8/Garrison | Triggered checkpoint 3398 | -8/Garrison | Triggered checkpoint 3442 | -8/Garrison | Destroyed 7 combat bots 3475 | -8/Garrison | Discovered new exit (range 10) 3502 | -8/Garrison | Triggered checkpoint 3559 | -8/Garrison | Build established: Mutant 3592 | -8/Garrison | Lost 5 parts (1p2u2w) 3701 | -8/Garrison | Discovered new exit (range 10) 3715 | -8/Garrison | Triggered checkpoint 3733 | -8/Garrison | Discovered new exit (range 31) 3733 | -8/Garrison | Discovered new exit (range 25) 3733 | -8/Garrison | Discovered new exit (range 61) 3741 | -8/Garrison | Garrison Relay disabled 3791 | -8/Garrison | Installed Relay Interface Framework 3903 | -8/Garrison | Entered Materials 4306 | -8/Materials | Build established: Hacker-Mutant 4358 | -8/Materials | Discovered new exit (range 11) 4663 | -8/Materials | Repaired Minigun 4703 | -8/Materials | Repaired Minigun 5409 | -8/Materials | Build established: Scavenger-Mutant 5481 | -8/Materials | Discovered new exit (range 12) 5488 | -8/Materials | Identified exit to Garrison 5492 | -8/Materials | Entered Garrison 5626 | -8/Garrison | Triggered checkpoint 5707 | -8/Garrison | Discovered new exit (range 12) 5717 | -8/Garrison | Expanded RIF knowledge: Robot Detection 5881 | -8/Garrison | Discovered new exit (range 14) 5881 | -8/Garrison | Discovered new exit (range 89) 5881 | -8/Garrison | Discovered new exit (range 45) 5967 | -8/Garrison | Triggered checkpoint 6002 | -8/Garrison | Garrison Relay disabled 6031 | -8/Garrison | Entered Factory 6031 | -7/Factory | Evolved 2 slots: Utility x2 6120 | -7/Factory | Fabricated Y-54 Guardian (x2) 6431 | -7/Factory | Identified exit to Garrison 6432 | -7/Factory | Entered Garrison 6466 | -7/Garrison | Learned Factory security intel 6486 | -7/Garrison | Discovered new exit (range 51) 6486 | -7/Garrison | Discovered new exit (range 71) 6486 | -7/Garrison | Discovered new exit (range 30) 6578 | -7/Garrison | Triggered checkpoint 6677 | -7/Garrison | Build established: Skirmisher 6732 | -7/Garrison | Garrison Relay disabled 6776 | -7/Garrison | Triggered checkpoint 7142 | -7/Garrison | Lost 6 parts (1p2n1u2w) 7206 | -7/Garrison | Triggered checkpoint 7230 | -7/Garrison | Expanded RIF knowledge: Threat Obfuscation 7265 | -7/Garrison | Garrison Relay disabled 7320 | -7/Garrison | Build established: Mutant 7351 | -7/Garrison | Entered Factory 8012 | -7/Factory | Identified exit to Garrison 8013 | -7/Factory | Entered Garrison 8066 | -7/Garrison | Expanded RIF knowledge: Watcher Feeds 8141 | -7/Garrison | Triggered checkpoint 8217 | -7/Garrison | Garrison Relay disabled 8325 | -7/Garrison | Core integrity fell below 50% 8345 | -7/Garrison | Triggered checkpoint 8542 | -7/Garrison | Discovered new exit (range 14) 8645 | -7/Garrison | Triggered checkpoint 8818 | -7/Garrison | Discovered new exit (range 10) 9000 | -7/Garrison | Garrison Relay disabled 9018 | -7/Garrison | Garrison Relay disabled 9325 | -7/Garrison | Core integrity fell below 20% 9704 | -7/Garrison | Triggered checkpoint 9801 | -7/Garrison | Garrison Relay disabled 10010 | -7/Garrison | Triggered checkpoint 10151 | -7/Garrison | Discovered new exit (range 15) 10191 | -7/Garrison | Triggered checkpoint 10231 | -7/Garrison | Garrison Relay disabled 10253 | -7/Garrison | Found embedded Infiltrators 10340 | -7/Garrison | Entered Factory 10340 | -6/Factory | Accompanied by 2 allies 10340 | -6/Factory | Evolved 2 slots: Utility x2 10885 | -6/Factory | Build established: Hacker-Mutant 11240 | -6/Factory | Build established: Scavenger-Mutant 11285 | -6/Factory | Discovered new exit (range 5) 11390 | -6/Factory | First assault squad dispatched 11402 | -6/Factory | Discovered new exit (range 10) 11415 | -6/Factory | Entered Extension 11415 | -6/Extension | Accompanied by 2 allies 11488 | -6/Extension | Lost 3 parts (2u1w) 11512 | -6/Extension | Rescued A7 11518 | -6/Extension | Rescued a captive Derelict 11712 | -6/Extension | Energy Cycler disabled 11712 | -6/Extension | Rescued a captive Derelict 11712 | -6/Extension | Rescued a captive Derelict 11712 | -6/Extension | Rescued a captive Derelict 11712 | -6/Extension | Rescued a captive Derelict 11712 | -6/Extension | Rescued a captive Derelict 11712 | -6/Extension | Rescued a captive Derelict 11713 | -6/Extension | Rescued a captive Derelict 11714 | -6/Extension | Rescued a captive Derelict 11715 | -6/Extension | Rescued a captive Derelict 11720 | -6/Extension | Rescued a captive Derelict 11722 | -6/Extension | Rescued a captive Derelict 11723 | -6/Extension | Rescued a captive Derelict 11754 | -6/Extension | Build established: Hacker-Mutant 11765 | -6/Extension | First assault squad dispatched 11967 | -6/Extension | Lost 4 parts (1p2n1w) 11967 | -6/Extension | Lost 3 allies 12045 | -6/Extension | Spotted B-75 Beast 12053 | -6/Extension | Destroyed B-75 Beast 12062 | -6/Extension | Discovered new exit (range 15) 12062 | -6/Extension | Spotted B-75 Beast 12090 | -6/Extension | Allies destroyed B-75 Beast 12116 | -6/Extension | System corruption reached 10% 12119 | -6/Extension | Lost 4 allies 12263 | -6/Extension | Discovered new exit (range 16) 12264 | -6/Extension | Discovered new exit (range 15) 12323 | -6/Extension | Entered Cetus 12323 | -6/Cetus | Accompanied by 1 ally (A7) 12328 | -6/Cetus | Acquired a Cetus Manufacturing Module code from A7 12345 | -6/Cetus | Spotted Cetus Guard 12345 | -6/Cetus | Spotted Cetus Guard 12349 | -6/Cetus | Spotted Cetus Guard 12352 | -6/Cetus | Spotted Cetus Guard 12356 | -6/Cetus | Allies destroyed Cetus Guard 12363 | -6/Cetus | Destroyed Cetus Guard 12371 | -6/Cetus | Build established: Scavenger-Mutant 12372 | -6/Cetus | Allies destroyed Cetus Guard 12384 | -6/Cetus | Allies destroyed Cetus Guard 12478 | -6/Cetus | Escorted A7 to Cetus Mainframe 12688 | -6/Cetus | Discovered new exit (range 16) 12712 | -6/Cetus | Entered Archives 12712 | -6/Archives | Accompanied by 1 ally (A7) 12720 | -6/Archives | Received a hacking code to weaken MAIN.C 12861 | -6/Archives | Core integrity fell below 50% 12921 | -6/Archives | Discovered new exit (range 16) 12951 | -6/Archives | Discovered new exit (range 13) 13106 | -6/Archives | Discovered new exit (range 13) 13422 | -6/Archives | Entered Factory 13422 | -5/Factory | Evolved 2 slots: Utility x2 13602 | -5/Factory | Identified exit to Garrison 13604 | -5/Factory | Entered Garrison 13604 | -5/Garrison | Accompanied by 1 ally 13614 | -5/Garrison | Met a derelict Sapper fleeing the area 13614 | -5/Garrison | Phase Generator disabled 13649 | -5/Garrison | Expanded RIF knowledge: Code Merge 13661 | -5/Garrison | Triggered checkpoint 13725 | -5/Garrison | Build established: Hacker-Mutant 13852 | -5/Garrison | Triggered checkpoint 13943 | -5/Garrison | Garrison Relay disabled 14088 | -5/Garrison | Triggered checkpoint 14094 | -5/Garrison | Triggered checkpoint 14102 | -5/Garrison | Triggered checkpoint 14333 | -5/Garrison | Lost 3 parts (1u2w) 14413 | -5/Garrison | Garrison Relay disabled 14444 | -5/Garrison | Triggered checkpoint 14485 | -5/Garrison | Spotted B-75 Beast 14488 | -5/Garrison | Discovered new exit (range 8) 14529 | -5/Garrison | Spotted B-75 Beast 14724 | -5/Garrison | Rewired Striker 14820 | -5/Garrison | Discovered new exit (range 12) 14967 | -5/Garrison | Lost 3 parts (2u1w) 14970 | -5/Garrison | Triggered checkpoint 14992 | -5/Garrison | Lost 3 allies 15023 | -5/Garrison | Garrison Relay disabled 15312 | -5/Garrison | Entered Factory 15312 | -4/Factory | Accompanied by 3 allies 15312 | -4/Factory | Evolved 2 slots: Propulsion x1, Utility x1 15375 | -4/Factory | Garrison activated, responded to threat 15436 | -4/Factory | Lost 3 allies 15477 | -4/Factory | Garrison activated, responded to threat 15489 | -4/Factory | Identified exit to Garrison 15491 | -4/Factory | Entered Garrison 15517 | -4/Garrison | Lost 11 parts (1p7u3w) 15611 | -4/Garrison | Triggered checkpoint 15637 | -4/Garrison | Found embedded Infiltrators 15725 | -4/Garrison | Garrison Relay disabled 15906 | -4/Garrison | Triggered checkpoint 15909 | -4/Garrison | Spotted B-86 Titan 15997 | -4/Garrison | Core integrity fell below 50% 16008 | -4/Garrison | Core integrity fell below 20% 16030 | -4/Garrison | System corruption reached 10% 16044 | -4/Garrison | Lost 12 parts (1p3n5u3w) 16073 | -4/Garrison | Destroyed by H-77 Assassin with Coil Gun Last Messages --------------- 16060_ Slug penetrates Wall. 16060_ Penetrated by Slug. 16062_ Coil Gun destroyed. 16062_ Slug penetrates Wall. 16063_ Penetrated by Slug. 16065_ Imp. Treads destroyed. 16065_ Slug penetrates Wall. 16065_ Penetrated by Slug. 16065_ Slug penetrates Wall. 16066_ Penetrated by Slug. 16066_ Slug penetrates Wall. 16066_ Penetrated by Slug. 16066_ Slug penetrates Wall. 16067_ Wall collapses. 16070_ Slug penetrates Wall. 16071_ Coil Gun destroyed. 16073_ D/=OM B:S:I8LKM#93 F CNRF #R&2 16073_ Slug penetrates Wall. 16073_ Penetrated by Slug. 16073_ Slug penetrates Wall. Map ----- +----------------------------------------------------+ | ????????????????????????????????????? | | ????????????????????????????????????? | | ????????????????????????????????????? | | ????????????????????????????????????? | | ????????????????????????????????????? | | ????????????????????????????????????? | | ????????????????????????????????????? | | ????????????????????????????????????? | | ????????????????????????????????????? | | ###########################?????????? | | = !%! #?????????? | | %![[!= #?????????? | | ##%[#################### #?????????? | | ?# #??????????????????# #?????????? | | ?# #??????????????????# #?????????? | | ?# #??????????????????# #?????????? | | ?# #??????????????????# #?????????? | | ?# #??????????????????# #?????????? | | ?# #??????????????????# #?????????? | | ?# #??????????????????# #?????????? | | ?# #??????????????????# #?????????? | | ?# #??????????????????# #?????????? | | ?# #??????????????????# #?????????? | | ?# #??????????????????# #?????????? | | ?# #??????????????????# #?????????? | | ?# ########???????????# @#?????????? | | ?# " #???????# #?????????? | | ?# ########???????????# #?????????? | | ?# #???????#####??????# ###???????? | | ?# #???????# #??????#! ; #???????? | | ?# ######### ########h=# #??????? | | ?# %! !%! h!=;###??????? | | ?# [ ! # #???????? | | ?##############""####### ###???????? | | ??????????????####?????#^ #?????????? | | ?????????????????????###^ #?????????? | | ?????????????????????# #?????????? | | ?????????????????????# #?????????? | | ?????????????????????# #?????????? | | ?????????????????????### ###???????? | | ???????????????????????# #"#???????? | | ???????????????????????# "#???????? | | ???????????????????????# !! #???????? | | ???????????????????????# ! #???????? | | ???????????????????????# #"#???????? | | ???????????????????????######???????? | | ????????????????????????????????????? | | ????????????????????????????????????? | | ????????????????????????????????????? | | ????????????????????????????????????? | +----------------------------------------------------+ Best States ------------- Heat Dissipation 62 Energy Generation 25 Energy Capacity 315 Matter Stores 300 Matter Capacity 300 Sight Range 16 Terrain Scan Range 16 Terrain Scan Density 10 Corruption Block 15 Armor Coverage 1350 Resistance: EM 15 Propulsion Shielding 33 Evasion (%) 55 Targeting Accuracy 24 Core Analysis 6 Recoil Reduction 3 Offensive Hacking 26 Defensive Hacking 24 Relay Coupler Types 2 Relay Coupler Value 97 Authchip Count 2 Trap Extractor Capacity 4 Item Schematics ----------------- Minigun | -7/Factory | Scanalyzed Robot Schematics ------------------ None Fabricated ------------ Y-54 Guardian | x2 | -7/Factory | Preloaded, Authchip Alien Tech Used ----------------- None Achievements -------------- Main Advantage Challenges ------------ None Game ------ Seed HelicalNullFalx Manual? 0 Play Time 02:22:32 Cumulative 185.8 hours Start 2024.11.14 @ 20:45:11 End 2024.11.14 @ 23:07:11 Sessions 1 Manual Loads 0 Difficulty Rogue Special Mode None Game No. 149 Rogue 149 Adventurer 0 Explorer 0 Win Type - Total 4 Types 2/0/1/1/0/0/0/0/0 Lore% 62 Gallery% 67 Achievement% 53 Wizard Run 0 Options --------- Layout 2 ASCII 0 Keyboard 0 Movement Numpad Keybinds 0 Fullscreen 1 Font 16/Terminus Map View 55x47 Zoom Use 0% Tactical HUD 1 Map Filters NONE Filters NONE Steam 1 RUN: 71fca072-7862-4b0d-b7bd-87cfcc10bab0